Cogmind - Beta 16.1 @@@ ROGUE MODE // 2026.02.10 @ 01:36:21 Player: Rainy Days Result: Destroyed by Y-54 Guardian with Flak Gun Performance ------------- Evolutions (0) 0 Regions Visited (3) 600 Robots Destroyed (28) 140 Value Destroyed (585) 585 Prototype IDs (0) 0 Alien Tech Used (0) 0 Bonus (0) 0 TOTAL SCORE: 1325 Bonus ------- None Cogmind --------- Core Integrity 0/250 Matter 290/300 Energy 200/200 System Corruption 4% Temperature Cool (12) Movement Rolling (110) Location -7/Recycling Parts ------- > --- POWER (1) -------- Subdweller Power Source > --- PROPULSION (2) --- Subdweller Monowheel Subdweller Monowheel > --- UTILITY (2) ------ Improved Heat Sink Large Storage Unit > --- WEAPON (2) ------- Subdweller Laser Beam Cannon > --- INVENTORY (15) --- Subdweller Power Source Scrap Shield Medium Laser Subdweller Laser Beam Cannon Assault Rifle Assault Rifle Grenade Launcher Scrap Shield Fragment (49) Scrap Shield Fragment (47) Scrap Shield Fragment (46) Peak State ------------ > --- POWER ------------ Subdweller Power Source > --- PROPULSION ------- Subdweller Monowheel Subdweller Monowheel > --- UTILITY ---------- Improved Heat Sink Large Storage Unit > --- WEAPON ----------- Subdweller Laser Subdweller Beam Cannon > --- INVENTORY -------- Subdweller Power Source Scrap Shield Medium Laser Subdweller Laser Beam Cannon Beam Cannon Assault Rifle Assault Rifle Grenade Launcher Scrap Shield Fragment Scrap Shield Fragment Scrap Shield Fragment [Rating: 16] Favorites ----------- Power Ion Engine Engine Ion Engine Propulsion Light Treads Treads Light Treads Wheel Subdweller Monowheel Utility Large Storage Unit Device Seismic Detector Storage Large Storage Unit Weapon Assault Rifle Energy Gun Subdweller Laser Energy Cannon Subdweller Beam Cannon Ballistic Gun Assault Rifle Launcher Grenade Launcher Build | -11 -10 -10 -7 ------- Run | Yrd Mat Sub Rec Slots Evolved . | . . . . Power . | . . . . Propulsion . | . . . . Utility . | . . . . Weapon . | . . . . Parts Attached 28 | 7 3 17 1 Power 3 | 1 . 2 . Engine 3 | 1 . 2 . Core . | . . . . Reactor . | . . . . Propulsion 8 | 2 . 6 . Treads 4 | 2 . 2 . Leg . | . . . . Wheel 4 | . . 4 . Hover . | . . . . Flight . | . . . . Utility 6 | 2 2 2 . Device 3 | 1 . 2 . Storage 3 | 1 2 . . Processor . | . . . . Hackware . | . . . . Protection . | . . . . Artifact . | . . . . Weapon 11 | 2 1 7 1 Energy Gun 3 | . 1 2 . Energy Cannon 3 | . . 2 1 Ballistic Gun 4 | 2 . 2 . Ballistic Cannon . | . . . . Launcher 1 | . . 1 . Special Weapon . | . . . . Impact Weapon . | . . . . Slashing Weapon . | . . . . Piercing Weapon . | . . . . Special Melee Weapon . | . . . . Unidentified Prototypes . | . . . . Parts Lost 10 | . 1 8 1 Power 1 | . . 1 . Propulsion 5 | . . 5 . Utility 1 | . . 1 . Weapon 3 | . 1 1 1 Highest Loss Streak 5 | . 1 5 1 To Critical Strikes 1 | . . 1 . Average Backups 8 | 4 7 9 9 Power . | . 1 1 1 Propulsion 2 | 3 2 1 . Utility . | . . . 1 Weapon 4 | . 4 6 7 Tool/Special . | . . . . Unused Backups 9 | . 6 . 3 Power 1 | . . . 1 Propulsion 4 | . 4 . . Utility 1 | . . . 1 Weapon 3 | . 2 . 1 Tool/Special . | . . . . Average Slot Usage (%) 97 | . 100 96 100 Engine 14 | . 14 14 14 Treads 20 | . 28 14 . Wheel 6 | . . 10 28 Device 13 | . 14 12 14 Storage 14 | . 14 14 14 Energy Gun 13 | . 13 14 14 Energy Cannon 3 | . . 5 14 Ballistic Gun 8 | . 14 3 . Launcher 2 | . . 4 . Peak Build Rating 16 | 7 8 16 16 Average Rating 9 | 5 7 12 15 On Entrance 7 | . 7 7 16 Avg Prop Armor Cover (%) 13 | . . 13 . Naked Turns . | . . . . Heaviest Build 38 | 14 30 38 38 Greatest Support 40 | 40 40 40 40 Greatest Overweight (x) 1 | 1 . 1 . Average Overweight (x) . | . . . . Largest Inventory Capacity 15 | 8 15 15 15 Average Capacity 11 | 7 9 15 15 Most Carried 15 | 6 10 15 13 Average Carried 9 | 4 7 12 12 Final Capacity 15 | 8 15 15 15 Final Carried 13 | 6 9 13 12 Class Distribution -------------------- 59% | Mutant 40% | Scavenger-Mutant Dominant Class ---------------- Mutant | -10/Materials Scavenger-Mutant | -10/Subcaves Scavenger-Mutant | -7/Recycling Resources | -11 -10 -10 -7 ----------- Run | Yrd Mat Sub Rec Matter Collected 746 | 310 103 333 . Remotely . | . . . . Salvage Created 730 | 150 203 377 . Parts 61 | 10 16 35 . Haulers Intercepted 1 | . 1 . . Recyclers Shooed 3 | 1 2 . . Parts Field Recycled . | . . . . Retrieved Matter . | . . . . Parts Self-Destructed 17 | . . 17 . Prevented . | . . . . Parts Restored . | . . . . Kills | -11 -10 -10 -7 ------- Run | Yrd Mat Sub Rec Combat Hostiles Destroyed 17 | . 3 14 . Guns 8 | . 3 5 . Cannons 2 | . . 2 . AOE 7 | . . 7 . Classes Destroyed 9 | 2 4 3 . Builder 1 | . 1 . . Tunneler 4 | 4 . . . Hauler 1 | . 1 . . Recycler 1 | 1 . . . Turret 2 | . . 2 . Watcher 2 | . 2 . . Swarmer 7 | . . 7 . Grunt 3 | . 3 . . Subdweller 7 | . . 7 . Best Kill Streak 4 | 3 2 4 . Combat Bots Only 4 | . 2 4 . Max Kills in Single Turn 3 | 1 1 3 . Gunslinging . | . . . . Exploded 3 | . . 3 . Melee . | . . . . Uniques/NPCs Destroyed . | . . . . Combat | -11 -10 -10 -7 -------- Run | Yrd Mat Sub Rec Hostile Shots Fired 164 | . 26 113 25 Missed 52 | . 5 38 9 Hits 112 | . 21 75 16 Projectile 112 | . 21 75 16 Critical Strikes 1 | . . 1 . Damage Taken 1579 | . 298 1125 156 Core 251 | . 22 188 41 Absorbed by Shields . | . . . . Core Remaining (%) 100 | 100 . . . Volleys Fired 84 | 10 29 43 2 Largest 2 | 2 2 2 2 Hottest 140 | 40 70 140 140 Shots Fired 163 | 20 58 82 3 Gun 139 | 20 58 59 2 Cannon 20 | . . 19 1 Launcher 4 | . . 4 . Special . | . . . . Kinetic 74 | 20 29 25 . Thermal 85 | . 29 53 3 Explosive 4 | . . 4 . Electromagnetic . | . . . . Robot Hit Streak 19 | 9 12 19 . Robot Miss Streak 4 | 2 4 4 3 Penetration Max . | . . . . Secondary Targets 1 | . 1 . . Max Gunslinging Chain 1 | . 1 . . Shots Hit Robots 112 | 13 38 61 . Core Hits 43 | 7 12 24 . Critical Kills . | . . . . Critical Parts Destroyed 2 | . 1 . 1 Critical Strikes 3 | . 2 . 1 Burn 1 | . 1 . . Destroy 2 | . 1 . 1 Melee Attacks . | . . . . Impact . | . . . . Slashing . | . . . . Piercing . | . . . . Sneak Attacks . | . . . . Combat Hostiles . | . . . . Follow-up Attacks . | . . . . Damage Inflicted 2088 | 133 503 1403 49 Guns 1471 | 133 487 832 19 Cannons 326 | . . 296 30 Explosions 275 | . . 275 . Melee . | . . . . Ramming 16 | . 16 . . Kinetic 640 | 133 238 269 . Thermal 1157 | . 249 859 49 Explosive 275 | . . 275 . Electromagnetic . | . . . . Impact . | . . . . Slashing . | . . . . Piercing . | . . . . Highest Corruption 4 | . 3 3 4 Average Corruption 2 | . 2 3 3 Corruption Purged . | . . . . Corruption Blocked . | . . . . Effects 16 | . 6 9 1 Message Errors 2 | . 1 1 . Matter Fused 4 | . 1 3 . Heat Flow Errors 3 | . . 3 . Data Loss (minor) 3 | . 2 1 . Misfires 1 | . 1 . . Alerts 1 | . . 1 . Weapon Failures 2 | . 1 . 1 Overload Shots . | . . . . Overflow Damage . | . . . . Projectiles . | . . . . Explosions . | . . . . Melee . | . . . . Knockbacks . | . . . . Impact . | . . . . Kinetic . | . . . . Secondary . | . . . . Self-Inflicted Damage . | . . . . Shots . | . . . . Rammed 4 | . 4 . . Targets Rammed 4 | . 4 . . Kicked . | . . . . Crushed . | . . . . Highest Temperature 259 | . 102 259 45 Average Temperature 29 | . 26 35 23 Received Heat Transfer 474 | . 72 369 33 Siege Activations . | . . . . Martial Activations . | . . . . Shielding Activations . | . . . . Robots Disrupted . | . . . . Combat Hostiles . | . . . . Robots Corrupted . | . . . . Combat Hostiles . | . . . . Parts Fried . | . . . . Impact Corruptions . | . . . . Robots Melted . | . . . . Combat Hostiles . | . . . . Parts Melted 1 | . . 1 . Heat Transferred 2057 | . 814 1181 62 Parts Sabotaged . | . . . . Parts Stolen . | . . . . Parts Stripped . | . . . . Power Chain Reactions . | . . . . Alert | -11 -10 -10 -7 ------- Run | Yrd Mat Sub Rec Maximum Alert Level . | . . . . Low Security (%) 100 | 100 100 . 100 Level 1 . | . . . . Level 2 . | . . . . Level 3 . | . . . . Level 4 . | . . . . Level 5 . | . . . . High Security . | . . . . Max Security . | . . . . Peak Influence 42 | 15 30 . 42 Initial 42 | . . . 42 Average 2 | 1 2 . 40 Influence Increases 376 | 25 86 265 . Destroy 0b10 Robot/C 240 | . 60 180 . Destroy 0b10 Robot/NC 45 | 25 20 . . Destroy Leader 16 | . 6 10 . Lose Combat Pursuer 75 | . . 75 . Influence Decreases 344 | 25 86 176 57 Entered New Map 47 | . . . 47 Time Decay 277 | 25 86 166 . Lost Part 20 | . . 10 10 Squads Dispatched . | . . . . Investigation . | . . . . Extermination . | . . . . Reinforcement . | . . . . Assault . | . . . . Garrison . | . . . . Intercept . | . . . . Searches Triggered . | . . . . Construction Impeded . | . . . . Haulers Reinforced . | . . . . Active Scanning Responses . | . . . . Cargo Convoy Interrupts . | . . . . Stealth | -11 -10 -10 -7 --------- Run | Yrd Mat Sub Rec Distress Signals 2 | . 2 . . Communications Jammed . | . . . . Distress Signals . | . . . . Times Spotted 35 | . 13 19 3 Peak Tracking Total 6 | . 3 6 3 Tactical Retreats 3 | . . 3 . Traps | -11 -10 -10 -7 ------- Run | Yrd Mat Sub Rec Traps Triggered 2 | . 2 . . Indirectly . | . . . . Trap Hack Attempts . | . . . . Triggered . | . . . . Disarmed . | . . . . Reprogrammed . | . . . . Reused . | . . . . Traps Extracted . | . . . . Installed . | . . . . Triggered . | . . . . Machines | -11 -10 -10 -7 ---------- Run | Yrd Mat Sub Rec Machines Disabled 1 | . . 1 . Max in Single Turn 1 | . . 1 . Machines Repaired . | . . . . Machines Dismantled . | . . . . Machines Sabotaged . | . . . . Overloaded Fab Kills . | . . . . Hacking | -11 -10 -10 -7 --------- Run | Yrd Mat Sub Rec Machines Accessed 2 | . 2 . . Terminals 2 | . 2 . . Fabricators . | . . . . Repair Stations . | . . . . Recycling Units . | . . . . Scanalyzers . | . . . . Garrison Access . | . . . . Total Hacks 5 | . 5 . . Successful . | . . . . Failed 5 | . 5 . . Catastrophic 2 | . 2 . . Database Lockouts . | . . . . Manual 5 | . 5 . . Terminals 5 | . 5 . . Fabricators . | . . . . Repair Stations . | . . . . Recycling Units . | . . . . Scanalyzers . | . . . . Garrison Access . | . . . . Terminal Hacks . | . . . . Fabricator Hacks . | . . . . Repair Station Hacks . | . . . . Recycling Unit Hacks . | . . . . Scanalyzer . | . . . . Garrison Access Hacks . | . . . . Unauthorized Hacks . | . . . . Terminals . | . . . . Fabricators . | . . . . Repair Stations . | . . . . Recycling Units . | . . . . Scanalyzers . | . . . . Garrison Access . | . . . . Data Cores Recovered . | . . . . Used . | . . . . Hacking Detections 2 | . 2 . . Full Trace Events . | . . . . Feedback Events . | . . . . Feedback Blocked . | . . . . Robot Schematics Acquired . | . . . . Robots Built . | . . . . Authchips . | . . . . Time . | . . . . Total Robot Build Rating . | . . . . Part Schematics Acquired . | . . . . Parts Built . | . . . . Authchips . | . . . . Time . | . . . . Total Part Build Rating . | . . . . Part Studies Acquired . | . . . . Parts Repaired . | . . . . Time . | . . . . Parts Recycled . | . . . . Recycled Matter . | . . . . Retrieved Matter . | . . . . Retrieved Components . | . . . . Parts Scanalyzed . | . . . . Part Schematics Acquired . | . . . . Parts Damaged . | . . . . Bothacking | -11 -10 -10 -7 ------------ Run | Yrd Mat Sub Rec Used RIF Installer . | . . . . Robots Hacked . | . . . . Non-combat . | . . . . Combat . | . . . . Robot Hacks Applied . | . . . . Relay Couplers Released . | . . . . Fabnet Peak Effective % . | . . . . Robots Rewired . | . . . . Allies Hacked . | . . . . Hacks Repelled . | . . . . Allies | -11 -10 -10 -7 -------- Run | Yrd Mat Sub Rec Total Allies . | . . . . Largest Group . | . . . . Highest-Rated Group . | . . . . Highest-Rated Ally . | . . . . Total Orders . | . . . . Ally Attacks . | . . . . Total Damage . | . . . . Kills . | . . . . Allies Corrupted . | . . . . Allies Melted . | . . . . Intel | -11 -10 -10 -7 ------- Run | Yrd Mat Sub Rec Active Infowar (turns) 917 | 33 742 142 . Optics 117 | . . 117 . Seismic 800 | 33 742 25 . Robot Analysis Total . | . . . . Derelict Logs Recovered . | . . . . Drone Launches . | . . . . Drone Recoveries . | . . . . Exploration | -11 -10 -10 -7 ------------- Run | Yrd Mat Sub Rec Turns Passed 1789 | 214 742 817 16 Spaces Moved 962 | 108 368 478 8 Core 2 | 2 . . . Treads 512 | 106 368 38 . Legs . | . . . . Wheels 448 | . . 440 8 Hover . | . . . . Flight . | . . . . Fastest Speed 50 | 50 160 110 110 Average Speed 143 | 158 160 128 110 Slowest Speed 240 | 160 160 240 110 Overloaded Moves . | . . . . Propulsion Burnouts . | . . . . Robots Hopped . | . . . . Potential Cave-ins . | . . . . Cave-ins Triggered . | . . . . Exploration Rate (%) 23 | 5 52 30 6 Regions Visited 3 Branch Regions 2 Pre-discovered Areas . | . . . . Known Exits Taken . | . . . . Unknown Exits Taken 3 | 1 1 1 . Scrap Searched . | . . . . Spaces Dug . | . . . . Terrain Destroyed 27 | . . 27 . Melee . | . . . . Projectile . | . . . . AOE 27 | . . 27 . Terrain Rammed . | . . . . Walls Destroyed . | . . . . Machines Disabled . | . . . . Actions | -11 -10 -10 -7 --------- Run | Yrd Mat Sub Rec Total 1204 | 130 464 598 12 Wait 76 | . 43 32 1 Move 959 | 107 367 477 8 Hop . | . . . . Pick Up 30 | 6 10 14 . Fast Attach 11 | 7 . 4 . Attach 12 | . 1 10 1 Detach 2 | . . 2 . Swap 10 | . 2 8 . Drop 15 | . 8 7 . Fire 84 | 10 29 43 2 Melee . | . . . . Ram . | . . . . Kick . | . . . . Crush 4 | . 4 . . Escape Stasis . | . . . . Rewire 1 | . . 1 . Trap . | . . . . Miscellaneous . | . . . . Route ------- -11/Scrapyard -10/Materials (discovered 2 exits: [*Min] / [*Sub]) -10/Subcaves (discovered 2 exits: [*Mat] / [*Rec]) -7/Recycling History --------- Turn | Location | Event 17 | -11/Scrapyard | Discovered new exit (range 14) 215 | -11/Scrapyard | Entered Materials 216 | -10/Materials | Met a group of wandering Federalists 275 | -10/Materials | Discovered new exit (range 5) 281 | -10/Materials | Lost 3 allies 303 | -10/Materials | Build established: Mutant 582 | -10/Materials | Discovered new exit (range 11) 957 | -10/Materials | Entered Subcaves 958 | -10/Subcaves | Continued accompanying wandering Federalists (2) 958 | -10/Subcaves | Approached by a straggling Scientist 968 | -10/Subcaves | Discovered new exit (range 13) 1025 | -10/Subcaves | Core integrity fell below 50% 1053 | -10/Subcaves | Lost 5 parts (3n1u1w) 1393 | -10/Subcaves | Build established: Scavenger-Mutant 1718 | -10/Subcaves | Discovered new exit (range 15) 1723 | -10/Subcaves | Core integrity fell below 20% 1774 | -10/Subcaves | Entered Recycling 1790 | -7/Recycling | Destroyed by Y-54 Guardian with Flak Gun Last Messages --------------- 01718_ EXIT=FOUND 01720_ Machine disabled. ZJ-825(c): "I think it's somewhere northeast of here" 01726_ Destroyed Autobeam. 01741_ Lgt. Treads destroyed. 01747_ Autobeam Turret destroyed. 01760_ Acquired 17 matter. 01765_ Acquired 10 matter. ZJ-825(c): "We're getting close, I can feel it." LOCATION=UNKNOWN GOAL=ESCAPE 01783_ P-60 Hacker springs to life. 01783_ T-07 Excavator suffers critical hit (Destroy). 01783_ Destroyed Mining Laser. 01784_ G-47 Trooper springs to life. 01787_ Sub. Beam Cannon destroyed. 01788_ System corrupted: Beam Cannon failed to cycle. Map ----- +----------------------------------------------------+ | ?????????????????????????????????????????????????? | | ?????????????????????????????????????????????????? | | ?????????????????????????????????????????????????? | | ?????????????????????????????????????????????????? | | ?????????????????????????????????????????????????? | | ?????????????????????????????????????????????????? | | ?????????????????????????????????????????????????? | | ?????????????????????????????????????????????????? | | ?????????????????????????????????????????????????? | | ?????????????????????????????????????????????????? | | ?????????????????????????????????????????????????? | | ?????????????????????????????????????????????????? | | ?????????????????????????????????????????????????? | | ?????????????????????????????????????????????????? | | ?????????????????????????????????????????????????? | | ?????????????????????????????????????????????????? | | ?????????????????????????????????????????????????? | | ????????????????????????#####????????????????????? | | ????????????????????????# #????????????????????? | | ????????????????????????# #????????????????????? | | ????????????????????????# #????????????????????? | | ????????????????????????# #????????????????????? | | ????????????????????????# #????????????????????? | | ??????????#############?# #????????????????????? | | ????????? ! # ##### #??????????????? | | ????????? ] / #@ #??????????????? | | ?????????[ =% ! p ####??????????????? | | ????????? ! ] g# #?????????????????? | | ????????? ! ] !t # #?????????????????? | | ?????????? ! ur ?# #?????????????????? | | ?????????? pd h ?#Y #?????????????????? | | ???????????###########??# ????????????????? | | ???????????????????????? ######???????????????? | | ????????????????????????# #????????????????????? | | ????????????????????????? #????????????????????? | | ????????????????????????? #????????????????????? | | ????????????????????????? #????????????????????? | | ????????????????????????? #????????????????????? | | ?????????????????????????#+##????????????????????? | | ?????????????????????????????????????????????????? | | ?????????????????????????????????????????????????? | | ?????????????????????????????????????????????????? | | ?????????????????????????????????????????????????? | | ?????????????????????????????????????????????????? | | ?????????????????????????????????????????????????? | | ?????????????????????????????????????????????????? | | ?????????????????????????????????????????????????? | | ?????????????????????????????????????????????????? | | ?????????????????????????????????????????????????? | | ?????????????????????????????????????????????????? | +----------------------------------------------------+ Best States ------------- Heat Dissipation 39 Energy Generation 15 Energy Capacity 250 Matter Stores 300 Matter Capacity 300 Sight Range 21 Terrain Scan Density 10 Evasion (%) 40 Recoil Reduction 2 Item Schematics ----------------- None Robot Schematics ------------------ None Fabricated ------------ Nothing Repaired ---------- Nothing Studied --------- None Alien Tech Used ----------------- None Achievements -------------- Strength In Numbers Challenges ------------ None Game ------ Seed BraceGodConstruct Manual? 0 Play Time 00:25:26 Cumulative 196.5 hours Start 2026.02.10 @ 00:38:20 End 2026.02.10 @ 01:36:21 Sessions 1 Manual Loads 0 Difficulty Rogue Special Mode None Game No. 71 Rogue 71 Adventurer 0 Explorer 0 Win Type - Total 4 Types 2/0/1/0/0/1/0/0/0/0 Lore% 46 Gallery% 57 Achievement% 42 Wizard Run 0 Options --------- Layout 2 ASCII 0 Keyboard 0 Movement Mouse Keybinds 0 Fullscreen 1 Font 24/Smallcaps Map View 50x44 Zoom Use 0% Tactical HUD 1 Map Filters NONE Filters NONE Steam 1 RUN: e80a7c67-acfe-4fba-b3af-d35bca3c4d7a